lending/lending_fUSD_20240219
["ID","MTS","AMOUNT","RATE_DAILY","PERIOD"]
[314476844,1708375851100,-2287.569706,0.0004498,14]
[314476845,1708375851110,-265.295596,0.0004498,14]
[314476846,1708375851119,-2287.569706,0.0004498,14]
[314476847,1708375851128,-166.655087,0.0004498,14]
[314476848,1708375851138,-151.0,0.0004498,14]
[314476849,1708375851147,-166.655087,0.0004498,14]
[314476850,1708375851157,-207.089613,0.0004498,14]
[314476851,1708375851167,-16646.48614904,0.0004498,2]
[314476852,1708375851177,-151.0,0.0004498,14]
[314476853,1708375851186,-207.089613,0.0004498,14]
[314476854,1708375851195,-151.0,0.0004498,7]
[314476855,1708375851205,-151.0,0.0004498,14]
[314476856,1708375851214,-1701.809969,0.0004498,14]
[314476857,1708375851224,-1701.809969,0.0004498,14]
[314476858,1708375851234,-151.0,0.0004498,14]
[314476859,1708375851243,-151.0,0.0004498,14]
[314476860,1708375851253,-151.0,0.0004498,14]
[314476861,1708375851262,-676.335609,0.0004498,14]
[314476862,1708375851271,-676.335609,0.0004498,14]
[314476863,1708375851280,-151.0,0.0004498,14]
[314476864,1708375851289,-163.74511,0.0004498,14]
[314476865,1708375851299,-163.74511,0.0004498,14]
[314476866,1708375851308,-151.0,0.0004498,7]
[314476867,1708375851317,-151.0,0.0004498,14]
[314476868,1708375851326,-151.0,0.0004498,14]
[314476869,1708375851335,-151.0,0.0004498,14]
[314476870,1708375851345,-183.040066,0.0004498,14]
[314476871,1708375851354,-660.946317,0.0004498,14]
[314476872,1708375851364,-660.946317,0.0004498,14]
[314476873,1708375851373,-183.040066,0.0004498,14]
[314476874,1708375851382,-301.285999,0.0004498,14]
[314476875,1708375851392,-194.517058,0.0004498,14]
[314476876,1708375851402,-194.517058,0.0004498,14]
[314476877,1708375851411,-571.908733,0.0004498,14]
[314476878,1708375851421,-2149.102666,0.0004498,14]
[314476879,1708375851430,-837.742386,0.0004498,14]
[314476880,1708375851440,-3267.905378,0.0004498,14]
[314476881,1708375851450,-571.908733,0.0004498,14]
[314476882,1708375851460,-2149.102666,0.0004498,14]
[314476883,1708375851470,-837.742386,0.0004498,14]
[314476884,1708375851480,-3267.905378,0.0004498,14]
[314476885,1708375851490,-151.0,0.0004498,14]
[314476886,1708375851500,-151.0,0.0004498,14]
[314476887,1708375851510,-1148.556697,0.0004498,14]
[314476888,1708375851520,-1148.556697,0.0004498,14]
[314476889,1708375851530,-468.996286,0.0004498,14]
[314476890,1708375851539,-468.996286,0.0004498,14]
[314476891,1708375851549,-232.813834,0.0004498,14]
[314476892,1708375851558,-232.813834,0.0004498,14]
[314476893,1708375851567,-151.0,0.0004498,14]
[314476894,1708375851577,-541.887298,0.0004498,14]
[314476895,1708375851586,-541.887298,0.0004498,14]
[314476896,1708375851596,-158.160054,0.0004498,14]
[314476897,1708375851605,-5980.587914,0.0004498,14]
[314476898,1708375851615,-158.160054,0.0004498,14]
[314476899,1708375851625,-5980.587914,0.0004498,14]
[314476900,1708375851634,-151.0,0.0004498,14]
[314476901,1708375851644,-151.0,0.0004498,14]
[314476902,1708375851653,-151.0,0.0004498,14]
[314476903,1708375851662,-170.336152,0.0004498,14]
[314476904,1708375851672,-170.336152,0.0004498,14]
[314476905,1708375851681,-151.0,0.0004498,14]
[314476906,1708375851690,-151.0,0.0004498,14]
[314476907,1708375851700,-164.129938,0.0004498,14]
[314476908,1708375851709,-151.0,0.0004498,3]
[314476909,1708375851719,-164.129938,0.0004498,14]
[314476910,1708375851728,-151.0,0.0004498,14]
[314476911,1708375851738,-200.0,0.00044987,19]
[314476912,1708375851747,-100000.0,0.00045,35]
[314476913,1708375851756,-31244.071282,0.00045,120]
[314476914,1708375851766,-4611.15060352,0.00045,30]
[314476915,1708375851775,-1818.30454293,0.00045,30]
[314476916,1708375851785,-427.53812298,0.00045,30]
[314476917,1708375851794,-10355.4,0.00045,14]
[314476918,1708375851803,-150.0,0.00045,10]
[314476919,1708375851812,-598.94345509,0.00045,30]
[314476920,1708375851821,-1250.0,0.00045,3]
[314476921,1708375851830,-200.0,0.00045,19]
[314476922,1708375851839,-300.0,0.00045,46]
[314476923,1708375851848,-216.76210202,0.00045,4]
[314476924,1708375851858,-290.73459333,0.00045,120]
[314476925,1708375851867,-929.29685752,0.00045006,39]
[314476926,1708375851876,-5056.41633167,0.00045056,19]
[314476927,1708375851885,-521.399526,0.000451,14]
[314476928,1708375851894,-206.0,0.00045117,22]
[314476929,1708375851903,-150.0,0.00045119,2]
[314476930,1708375851913,-574.99,0.00045149,2]
[314476931,1708375851922,-150.0,0.00045167,30]
[314476932,1708375851931,-150.0,0.00045179,2]
[314476933,1708375851939,-150.0,0.0004519,2]
[314476934,1708375851949,-26068.13,0.000452,7]
[314476935,1708375851959,-500.0,0.00045205,10]
[314476936,1708375851968,-150.0,0.0004523,2]
[314476937,1708375851977,-150.0,0.00045282,2]
[314476938,1708375851987,-150.0,0.00045286,2]
[314476939,1708375851998,-1000.0,0.00045288,30]
[314476940,1708375852007,-150.0,0.00045288,2]
[314476941,1708375852016,-289.62061,0.0004529,27]
[314476942,1708375852025,-1000.0,0.00045303,30]
[314476943,1708375852035,-150.0,0.00045373,2]
[314476944,1708375852044,-150.0,0.00045374,5]
[314476945,1708375852057,-150.0,0.00045374,5]
[314476946,1708375852071,-150.0,0.00045422,2]
[314476947,1708375852081,-150.0,0.00045423,2]
[314476948,1708375852091,-2563.82,0.00045455,120]
[314476949,1708375852100,-150.0,0.00045472,2]
[314476950,1708375852111,-800.0,0.00045479,2]
[314476951,1708375852120,-150.0,0.00045521,2]
[314476952,1708375852129,-693.36,0.0004555,2]
[314476953,1708375852138,-150.0,0.00045563,2]
[314476954,1708375852149,-150.0,0.00045565,2]
[314476955,1708375852158,-150.0,0.00045592,2]
[314476956,1708375852167,-150.0,0.00045594,2]
[314476957,1708375852177,-150.0,0.00045594,2]
[314476958,1708375852186,-150.0,0.00045595,2]
[314476959,1708375852195,-150.0,0.00045596,2]
[314476960,1708375852205,-153.03,0.000456,5]
[314476961,1708375852215,-153.03,0.000456,5]
[314476962,1708375852224,-153.03,0.000456,5]
[314476963,1708375852233,-153.03,0.000456,5]
[314476964,1708375852244,-1616.52,0.000456,5]
[314476965,1708375852253,-1616.52,0.000456,5]
[314476966,1708375852263,-1616.52,0.000456,5]
[314476967,1708375852272,-1616.52,0.000456,5]
[314476968,1708375852282,-1616.52,0.000456,5]
[314476969,1708375852292,-1616.52,0.000456,5]
[314476970,1708375852301,-1616.52,0.000456,5]
[314476971,1708375852311,-1616.52,0.000456,5]
[314476972,1708375852320,-1616.52,0.000456,5]
[314476973,1708375852330,-1616.52,0.000456,5]
[314476974,1708375852340,-1616.52,0.000456,5]
[314476975,1708375852350,-1616.52,0.000456,5]
[314476976,1708375852359,-1616.52,0.000456,5]
[314476977,1708375852370,-1616.52,0.000456,5]
[314476978,1708375852381,-1616.52,0.000456,5]
[314476979,1708375852391,-1616.52,0.000456,5]
[314476980,1708375852401,-1616.52,0.000456,5]
[314476981,1708375852411,-1616.52,0.000456,5]
[314476982,1708375852420,-1616.52,0.000456,5]
[314476983,1708375852430,-1616.52,0.000456,5]
[314476984,1708375852440,-385.0,0.00045671,90]
[314476985,1708375852449,-150.0,0.00045676,2]
[314476986,1708375852459,-150.0,0.00045688,2]
[314476987,1708375852469,-5809.9301892,0.00045695,21]
[314476988,1708375852478,-1500.000001,0.000457,62]
[314476989,1708375852488,-150.0,0.00045726,2]
[314476990,1708375852497,-150.0,0.00045769,5]
[314476991,1708375852506,-150.0,0.00045769,5]
[314476992,1708375852516,-489.65168544,0.00045805,7]
[314476993,1708375852526,-547.48,0.00045828,15]
[314476994,1708375852535,-150.0,0.00045834,2]
[314476995,1708375852545,-150.0,0.00045845,2]
[314476996,1708375852554,-182.51508742,0.0004585,2]
[314476997,1708375852563,-150.0,0.00045869,2]
[314476998,1708375852573,-889.92258563,0.00045953,5]
[314476999,1708375852582,-150.0,0.00045986,60]
[314477000,1708375852592,-200.0,0.00045987,71]
[314477001,1708375852602,-150.0,0.00045998,60]
[314477002,1708375852611,-150.0,0.00045998,60]
[314477003,1708375852621,-150.0,0.00045999,2]
[314477004,1708375852630,-100000.0,0.00046,36]
[314477005,1708375852640,-3720.0,0.00046,33]
[314477006,1708375852649,-150.0,0.00046,10]
[314477007,1708375852659,-2144.87362499,0.00046,30]
[314477008,1708375852672,-200.0,0.00046,21]
[314477009,1708375852682,-300.0,0.00046,47]
[314477010,1708375852691,-153.28144718,0.00046032,30]
[314477011,1708375852701,-150.0,0.00046091,2]
[314477012,1708375852711,-500.0,0.000461,14]
[314477013,1708375852720,-206.0,0.00046109,24]
[314477014,1708375852730,-150.0,0.00046114,2]
[314477015,1708375852741,-154.0583357,0.00046117,30]
[314477016,1708375852750,-154.0583357,0.00046135,30]
[314477017,1708375852760,-150.0,0.00046152,2]
[314477018,1708375852769,-150.0,0.00046164,6]
[314477019,1708375852778,-150.0,0.00046164,6]
[314477020,1708375852788,-237763.24127102,0.00046172,6]
[314477021,1708375853693,-7227.7727711,0.00046172,6]
[314477022,1708375853706,-596.05964064,0.00046172,6]
[314477023,1708375853719,-545.15386629,0.00046172,6]
[314477024,1708375853773,-193.27553185,0.0004,2]
[314477025,1708375853782,-4733.07117162,0.00046172,6]
[314477026,1708375855054,-184.64768247,0.0003352,2]
[314477027,1708375855068,-1440.98730562,0.00038692,11]
[314477028,1708375855079,-1028.71499996,0.00038692,11]
[314477029,1708375855092,-777.92,0.00038692,11]
[314477030,1708375855117,-587.66370838,0.00038692,11]
[314477031,1708375855127,-193.27553185,0.0004,2]
[314477032,1708375855137,-193.27553185,0.0004,2]
[314477033,1708375855147,-48.07522792,0.0004,2]
[314477034,1708375855350,-222.13,0.0003789,2]
[314477035,1708375855360,-145.20030393,0.0004,2]
[314477036,1708375855370,-193.27553185,0.0004,2]
[314477037,1708375855380,-193.27553185,0.0004,2]
[314477038,1708375855390,-193.27553185,0.0004,2]
[314477039,1708375855400,-193.27553185,0.0004,2]
[314477040,1708375855411,-193.27553185,0.0004,2]
[314477041,1708375855421,-193.27553185,0.0004,2]
[314477042,1708375855431,-193.27553185,0.0004,2]
[314477043,1708375855441,-193.27553185,0.0004,2]
[314477044,1708375855451,-151.0,0.000407,14]
[314477045,1708375855460,-151.0,0.00042,14]
[314477046,1708375855469,-10154.79727877,0.00044235,6]
[314477047,1708375855480,-228506.16127933,0.00046172,6]
[314477048,1708375855490,-1684.14,0.00046172,6]
[314477049,1708375855499,-41184.38,0.00046172,6]
[314477050,1708375855509,-64371.98,0.00046172,6]
[314477051,1708375855518,-33206.83,0.00046172,6]
[314477052,1708375855528,-10913.24,0.00046172,6]
[314477053,1708375855538,-72142.12,0.00046172,6]
[314477054,1708375855549,-2401.67,0.00046172,6]
[314477055,1708375855558,-11571.94,0.00046172,6]
[314477056,1708375855567,-17844.1,0.00046172,6]
[314477057,1708375855577,-20145.83,0.00046172,6]
[314477058,1708375855586,-150.06910512,0.00046174,30]
[314477059,1708375855595,-241.88879428,0.00046185,30]
[314477060,1708375855605,-200.0,0.000462,2]
[314477061,1708375855613,-300.0,0.00046203,2]
[314477062,1708375855622,-150.0,0.00046251,2]
[314477063,1708375855631,-150.0,0.00046276,2]
[314477064,1708375855641,-150.0,0.00046297,2]
[314477065,1708375855650,-800.0,0.00046301,2]
[314477066,1708375855659,-150.0,0.00046312,2]
[314477067,1708375855668,-150.0,0.00046314,2]
[314477068,1708375855677,-385.0,0.00046315,90]
[314477069,1708375855686,-154.18,0.00046329,2]
[314477070,1708375855695,-211.82443069,0.00046338,30]
[314477071,1708375855705,-150.0,0.00046369,2]
[314477072,1708375855714,-156.89813651,0.00046382,30]
[314477073,1708375855723,-150.0,0.00046387,2]
[314477074,1708375855732,-211.82443069,0.00046388,30]
[314477075,1708375855744,-5797.01,0.000464,120]
[314477076,1708375855753,-5797.01,0.000464,120]
[314477077,1708375855763,-5797.01,0.000464,120]
[314477078,1708375855772,-150.0,0.00046412,2]
[314477079,1708375855782,-795.16,0.00046415,15]
[314477080,1708375855791,-795.16,0.00046415,15]
[314477081,1708375855800,-795.16,0.00046415,15]
[314477082,1708375855810,-795.16,0.00046415,15]
[314477083,1708375855819,-156.89813651,0.00046427,30]
[314477084,1708375855828,-300.0,0.00046427,2]
[314477085,1708375855837,-150.0,0.00046431,2]
[314477086,1708375855846,-150.0,0.00046472,2]
[314477087,1708375855855,-5809.9301892,0.00046475,22]
[314477088,1708375855864,-1264.00478321,0.00046475,12]
[314477089,1708375855874,-557.8543233,0.00046475,2]
[314477090,1708375855883,-186.1246311,0.00046475,9]
[314477091,1708375855893,-929.29685752,0.00046475,41]
[314477092,1708375855902,-463.57160232,0.00046475,2]
[314477093,1708375855912,-150.06910512,0.00046483,30]
[314477094,1708375855920,-150.0,0.00046492,2]
[314477095,1708375855929,-3000.0,0.000465,67]
[314477096,1708375855939,-3000.0,0.0004651,67]
[314477097,1708375855948,-150.0,0.00046512,2]
[314477098,1708375855957,-5491.80704,0.0004652,67]
[314477099,1708375855967,-150.06910512,0.00046536,30]
[314477100,1708375855976,-4197.8608383,0.00046543,2]
[314477101,1708375855985,-150.0,0.00046559,6]
[314477102,1708375855996,-150.0,0.00046559,6]
[314477103,1708375856005,-202.04343997,0.00046565,90]
[314477104,1708375856014,-200.0,0.00046565,90]
[314477105,1708375856023,-500.0,0.00046575,30]
[314477106,1708375856032,-2000.0,0.00046575,30]
[314477107,1708375856042,-2000.0,0.00046575,30]
[314477108,1708375856051,-2000.0,0.00046575,30]
[314477109,1708375856061,-2000.0,0.00046575,30]
[314477110,1708375856073,-2000.0,0.00046575,30]
[314477111,1708375856082,-2000.0,0.00046575,30]
[314477112,1708375856091,-2000.0,0.00046575,30]
[314477113,1708375856101,-2000.0,0.00046575,30]
[314477114,1708375856111,-2000.0,0.00046575,30]
[314477115,1708375856121,-2000.0,0.00046575,30]
[314477116,1708375856130,-2000.0,0.00046575,30]
[314477117,1708375856140,-2000.0,0.00046575,30]
[314477118,1708375856154,-2000.0,0.00046575,30]
[314477119,1708375856165,-2000.0,0.00046575,30]
[314477120,1708375856174,-2000.0,0.00046575,30]
[314477121,1708375856184,-2000.0,0.00046575,30]
[314477122,1708375856194,-2000.0,0.00046575,30]
[314477123,1708375856203,-2000.0,0.00046575,30]
[314477124,1708375856213,-2000.0,0.00046575,30]
[314477125,1708375856222,-2000.0,0.00046575,30]
[314477126,1708375856231,-2000.0,0.00046575,30]
[314477127,1708375856240,-2000.0,0.00046575,30]
[314477128,1708375856249,-2000.0,0.00046575,30]
[314477129,1708375856259,-2000.0,0.00046575,30]
[314477130,1708375856268,-2000.0,0.00046575,30]
[314477131,1708375856277,-2000.0,0.00046575,30]
[314477132,1708375856286,-2000.0,0.00046575,30]
[314477133,1708375856296,-2000.0,0.00046575,30]
[314477134,1708375856305,-2000.0,0.00046575,30]
[314477135,1708375856315,-2000.0,0.00046575,30]
[314477136,1708375856324,-500.0,0.00046575,30]
[314477137,1708375856333,-152.0,0.00046575,6]
[314477138,1708375856342,-500.0,0.00046575,30]
[314477139,1708375856351,-500.0,0.00046575,30]
[314477140,1708375856360,-500.0,0.00046575,30]
[314477141,1708375856369,-551.94385762,0.00046575,30]
[314477142,1708375856379,-612.59868514,0.00046575,30]
[314477143,1708375856388,-500.0,0.00046575,30]
[314477144,1708375856398,-516.34590023,0.00046575,30]
[314477145,1708375856407,-500.0,0.00046575,30]
[314477146,1708375856417,-581.97686861,0.00046575,30]
[314477147,1708375856426,-502.02955413,0.00046575,30]
[314477148,1708375856436,-500.0,0.00046575,30]
[314477149,1708375856445,-279.15425763,0.00046575,30]
[314477150,1708375856454,-500.0,0.00046575,30]
[314477151,1708375856464,-518.78549715,0.00046575,30]
[314477152,1708375856474,-500.0,0.00046575,30]
[314477153,1708375856484,-500.0,0.00046575,30]
[314477154,1708375856497,-518.91290977,0.00046575,30]
[314477155,1708375856507,-500.0,0.00046575,30]
[314477156,1708375856517,-500.0,0.00046575,30]
[314477157,1708375856527,-500.0,0.00046575,30]
[314477158,1708375856537,-503.76382952,0.00046575,30]
[314477159,1708375856547,-337.31963299,0.00046575,30]
[314477160,1708375856557,-500.0,0.00046575,30]
[314477161,1708375856567,-500.0,0.00046575,30]
[314477162,1708375856576,-500.0,0.00046575,30]
[314477163,1708375856586,-607.93626441,0.00046575,30]
[314477164,1708375856595,-500.0,0.00046575,30]
[314477165,1708375856605,-461.73858617,0.00046575,30]
[314477166,1708375856615,-500.0,0.00046575,30]
[314477167,1708375856625,-500.0,0.00046575,30]
[314477168,1708375856634,-505.87095217,0.00046575,30]
[314477169,1708375856643,-500.0,0.00046575,30]
[314477170,1708375856653,-500.0,0.00046575,30]
[314477171,1708375856662,-525.02823645,0.00046575,30]
[314477172,1708375856671,-500.0,0.00046575,30]
[314477173,1708375856681,-525.26206264,0.00046575,30]
[314477174,1708375856690,-500.0,0.00046575,30]
[314477175,1708375856699,-500.0,0.00046575,30]
[314477176,1708375856708,-322.8632714,0.00046575,30]
[314477177,1708375856717,-500.0,0.00046575,30]
[314477178,1708375856727,-500.0,0.00046575,30]
[314477179,1708375856736,-500.0,0.00046575,30]
[314477180,1708375856750,-500.0,0.00046575,30]
[314477181,1708375856759,-500.0,0.00046575,30]
[314477182,1708375856769,-500.0,0.00046575,30]
[314477183,1708375856780,-500.0,0.00046575,30]
[314477184,1708375856789,-500.0,0.00046575,30]
[314477185,1708375856799,-500.0,0.00046575,30]
[314477186,1708375856808,-500.0,0.00046575,30]
[314477187,1708375856818,-500.0,0.00046575,30]
[314477188,1708375856827,-510.86438331,0.00046575,30]
[314477189,1708375856836,-500.0,0.00046575,30]
[314477190,1708375856845,-500.0,0.00046575,30]
[314477191,1708375856854,-551.80871935,0.00046575,30]
[314477192,1708375856863,-508.87588607,0.00046575,30]
[314477193,1708375856873,-500.0,0.00046575,30]
[314477194,1708375856882,-658.14,0.00046575,30]
[314477195,1708375856891,-388.69423236,0.00046575,30]
[314477196,1708375856902,-500.0,0.00046575,30]
[314477197,1708375856911,-500.0,0.00046575,30]
[314477198,1708375856920,-500.0,0.00046575,30]
[314477199,1708375856930,-500.0,0.00046575,30]
[314477200,1708375856938,-500.0,0.00046575,30]
[314477201,1708375856948,-1280.2,0.00046575,7]
[314477202,1708375856957,-500.0,0.00046575,30]
[314477203,1708375856967,-500.0,0.00046575,30]
[314477204,1708375856976,-500.0,0.00046575,30]
[314477205,1708375856986,-500.0,0.00046575,30]
[314477206,1708375856997,-727.1,0.00046575,30]
[314477207,1708375857006,-500.0,0.00046575,30]
[314477208,1708375857016,-500.0,0.00046575,30]
[314477209,1708375857025,-500.0,0.00046575,30]
[314477210,1708375857035,-500.0,0.00046575,30]
[314477211,1708375857044,-500.0,0.00046575,30]
[314477212,1708375857053,-521.41486853,0.00046575,30]
[314477213,1708375857065,-500.0,0.00046575,30]
[314477214,1708375857075,-500.0,0.00046575,30]
[314477215,1708375857084,-500.0,0.00046575,30]
[314477216,1708375857094,-500.0,0.00046575,30]
[314477217,1708375857105,-500.0,0.00046575,30]
[314477218,1708375857115,-510.67915953,0.00046575,30]
[314477219,1708375857125,-611.49,0.00046575,30]
[314477220,1708375857134,-500.0,0.00046575,30]
[314477221,1708375857145,-505.86368729,0.00046575,30]
[314477222,1708375857154,-500.0,0.00046575,30]
[314477223,1708375857163,-500.0,0.00046575,30]
[314477224,1708375857173,-500.0,0.00046575,30]
[314477225,1708375857182,-500.0,0.00046575,30]
[314477226,1708375857192,-500.0,0.00046575,30]
[314477227,1708375857201,-500.0,0.00046575,30]
[314477228,1708375857210,-517.83361149,0.00046575,30]
[314477229,1708375857220,-523.69585209,0.00046575,30]
[314477230,1708375857230,-500.0,0.00046575,30]
[314477231,1708375857239,-523.9832099,0.00046575,30]
[314477232,1708375857250,-500.0,0.00046575,30]
[314477233,1708375857260,-500.0,0.00046575,30]
[314477234,1708375857269,-500.0,0.00046575,30]
[314477235,1708375857278,-500.0,0.00046575,30]
[314477236,1708375857287,-500.0,0.00046575,30]
[314477237,1708375857296,-642.69,0.00046575,30]
[314477238,1708375857306,-369.09775468,0.00046575,30]
[314477239,1708375857315,-502.75,0.00046575,30]
[314477240,1708375857545,-500.0,0.00046575,30]
[314477241,1708375857555,-500.0,0.00046575,30]
[314477242,1708375857564,-603.33855457,0.00046575,30]
[314477243,1708375857573,-500.0,0.00046575,30]
[314477244,1708375857583,-500.0,0.00046575,30]
[314477245,1708375857592,-500.0,0.00046575,30]
[314477246,1708375857601,-500.0,0.00046575,30]
[314477247,1708375857610,-500.0,0.00046575,30]
[314477248,1708375857619,-680.66,0.00046575,30]
[314477249,1708375857628,-500.0,0.00046575,30]
[314477250,1708375857637,-500.0,0.00046575,30]
[314477251,1708375857647,-500.0,0.00046575,30]
[314477252,1708375857656,-500.0,0.00046575,30]
[314477253,1708375857666,-500.0,0.00046575,30]
[314477254,1708375857674,-500.0,0.00046575,30]
[314477255,1708375857684,-500.0,0.00046575,30]
[314477256,1708375857692,-534.7,0.00046575,30]
[314477257,1708375857702,-500.0,0.00046575,30]
[314477258,1708375857711,-643.12263167,0.00046575,30]
[314477259,1708375857720,-673.61,0.00046575,30]
[314477260,1708375857730,-500.0,0.00046575,30]
[314477261,1708375857739,-500.0,0.00046575,30]
[314477262,1708375857750,-500.0,0.00046575,30]
[314477263,1708375857759,-500.0,0.00046575,30]
[314477264,1708375857768,-500.0,0.00046575,30]
[314477265,1708375857777,-500.0,0.00046575,30]
[314477266,1708375857786,-518.4768344,0.00046575,30]
[314477267,1708375857796,-546.31,0.00046575,30]
[314477268,1708375857805,-500.0,0.00046575,30]
[314477269,1708375857814,-500.0,0.00046575,30]
[314477270,1708375857823,-500.0,0.00046575,30]
[314477271,1708375857832,-197.21791937,0.00046575,30]
[314477272,1708375857842,-500.0,0.00046575,30]
[314477273,1708375857851,-500.0,0.00046575,30]
[314477274,1708375857861,-458.54462268,0.00046575,30]
[314477275,1708375857870,-500.0,0.00046575,30]
[314477276,1708375857879,-500.0,0.00046575,30]
[314477277,1708375857889,-500.0,0.00046575,30]
[314477278,1708375857898,-500.0,0.00046575,30]
[314477279,1708375857907,-500.0,0.00046575,30]
[314477280,1708375857917,-500.0,0.00046575,30]
[314477281,1708375857926,-500.0,0.00046575,30]
[314477282,1708375857935,-500.0,0.00046575,30]
[314477283,1708375857944,-500.0,0.00046575,30]
[314477284,1708375857954,-500.0,0.00046575,30]
[314477285,1708375857963,-500.0,0.00046575,30]
[314477286,1708375857972,-500.0,0.00046575,30]
[314477287,1708375857981,-500.0,0.00046575,30]
[314477288,1708375857990,-500.0,0.00046575,30]
[314477289,1708375858001,-700.86,0.00046575,30]
[314477290,1708375858010,-500.0,0.00046575,30]
[314477291,1708375858019,-500.0,0.00046575,30]
[314477292,1708375858028,-500.0,0.00046575,30]
[314477293,1708375858038,-500.0,0.00046575,30]
[314477294,1708375858047,-515.56,0.00046575,30]
[314477295,1708375858057,-500.0,0.00046575,30]
[314477296,1708375858071,-500.0,0.00046575,30]
[314477297,1708375858081,-150.0,0.00046575,30]
[314477298,1708375858090,-500.0,0.00046575,30]
[314477299,1708375858099,-500.0,0.00046575,30]
[314477300,1708375858109,-500.0,0.00046575,30]
[314477301,1708375858118,-500.0,0.00046575,30]
[314477302,1708375858127,-500.0,0.00046575,30]
[314477303,1708375858137,-500.0,0.00046575,30]
[314477304,1708375858146,-500.0,0.00046575,30]
[314477305,1708375858156,-500.0,0.00046575,30]
[314477306,1708375858164,-500.0,0.00046575,30]
[314477307,1708375858173,-500.0,0.00046575,30]
[314477308,1708375858183,-500.0,0.00046575,30]
[314477309,1708375858192,-500.0,0.00046575,30]
[314477310,1708375858201,-500.0,0.00046575,30]
[314477311,1708375858210,-500.0,0.00046575,30]
[314477312,1708375858219,-500.0,0.00046575,30]
[314477313,1708375858228,-500.0,0.00046575,30]
[314477314,1708375858237,-500.0,0.00046575,30]
[314477315,1708375858247,-500.0,0.00046575,30]
[314477316,1708375858256,-500.0,0.00046575,30]
[314477317,1708375858265,-500.0,0.00046575,30]
[314477318,1708375858275,-207.38196786,0.00046575,30]
[314477319,1708375858284,-5000.0,0.00046575,30]
[314477320,1708375858293,-500.0,0.00046575,30]
[314477321,1708375858302,-500.0,0.00046575,30]
[314477322,1708375858312,-500.0,0.00046575,30]
[314477323,1708375858321,-683.1,0.00046575,30]
[314477324,1708375858330,-558.17,0.00046575,30]
[314477325,1708375858339,-500.0,0.00046575,30]
[314477326,1708375858348,-500.0,0.00046575,30]
[314477327,1708375858357,-500.0,0.00046575,30]
[314477328,1708375858366,-500.0,0.00046575,30]
[314477329,1708375858376,-500.0,0.00046575,30]
[314477330,1708375858385,-557.82796288,0.00046575,30]
[314477331,1708375858395,-500.0,0.00046575,30]
[314477332,1708375858404,-500.0,0.00046575,30]
[314477333,1708375858413,-773.54,0.00046575,30]
[314477334,1708375858423,-500.0,0.00046575,30]
[314477335,1708375858432,-500.0,0.00046575,30]
[314477336,1708375858441,-500.0,0.00046575,30]
[314477337,1708375858450,-500.0,0.00046575,30]
[314477338,1708375858460,-500.0,0.00046575,30]
[314477339,1708375858469,-500.0,0.00046575,30]
[314477340,1708375858478,-500.0,0.00046575,30]
[314477341,1708375858488,-500.0,0.00046575,30]
[314477342,1708375858499,-500.0,0.00046575,30]
[314477343,1708375858508,-500.0,0.00046575,30]